Cogmind - Beta 16 @@@ ROGUE MODE // 2025.11.11 @ 16:08:22 Player: SUI Result: Destroyed by G-47 Trooper with Particle Gun Performance ------------- Evolutions (2) 1000 Regions Visited (3) 600 Robots Destroyed (42) 210 Value Destroyed (1205) 1205 Prototype IDs (1) 20 Alien Tech Used (0) 0 Bonus (101) 101 TOTAL SCORE: 3136 Bonus ------- Follower Combat Kills 130 Friendly Fire -29 Cogmind --------- Core Integrity 0/550 Matter 127/300 Energy 95/100 System Corruption 0% Temperature Cool (9) Movement Core (700) Ox13 Location -8/Materials Parts ------- > --- POWER (1) -------- (None) > --- PROPULSION (3) --- (None) > --- UTILITY (4) ------ High-capacity Storage Unit Subdweller Optics > --- WEAPON (3) ------- (None) > --- INVENTORY (20) --- Improved Heat Sink Huge Storage Unit Makeshift Light Armor Plating Peak State ------------ > --- POWER ------------ Subdweller Power Source > --- PROPULSION ------- Light Treads > --- UTILITY ---------- High-capacity Storage Unit Improved Targeting Computer Core Shielding V3-11A's Pendant > --- WEAPON ----------- Plasma Cannon Plasma Cannon Plasma Cannon > --- INVENTORY -------- Light Nuclear Core Improved Heat Sink High-capacity Storage Unit Huge Storage Unit Visual Processing Unit Subdweller Optics Improved Terrain Scanner ECM Suite Makeshift Light Armor Plating System Shield Plasma Cannon [Rating: 24] Favorites ----------- Power Ion Engine Engine Ion Engine Power Core Light Nuclear Core Propulsion Light Treads Treads Light Treads Wheel Subdweller Monowheel Utility High-capacity Storage Unit Device V3-11A's Pendant Storage High-capacity Storage Unit Processor Improved Targeting Computer Protection Scrap Shield Weapon EM Pulse Gun Energy Gun EM Pulse Gun Energy Cannon Subdweller Beam Cannon Ballistic Gun Subdweller Machine Gun Ballistic Cannon Battle Cannon Launcher Grenade Launcher Special Weapon Plasma Cutter Build | -11 -10 -10 -8 ------- Run | Yrd Mat Sub Mat Slots Evolved 4 | . . . 4 Power . | . . . . Propulsion 1 | . . . 1 Utility 2 | . . . 2 Weapon 1 | . . . 1 Parts Attached 48 | 7 4 14 23 Power 4 | 1 . 2 1 Engine 3 | 1 . 2 . Core 1 | . . . 1 Reactor . | . . . . Propulsion 9 | 2 . 3 4 Treads 6 | 2 . . 4 Leg . | . . . . Wheel 3 | . . 3 . Hover . | . . . . Flight . | . . . . Utility 13 | 1 3 2 7 Device 5 | . 1 2 2 Storage 4 | 1 2 . 1 Processor 1 | . . . 1 Hackware . | . . . . Protection 3 | . . . 3 Artifact . | . . . . Weapon 22 | 3 1 7 11 Energy Gun 8 | 3 1 2 2 Energy Cannon 7 | . . 3 4 Ballistic Gun 1 | . . . 1 Ballistic Cannon 3 | . . . 3 Launcher 1 | . . . 1 Special Weapon 2 | . . 2 . Impact Weapon . | . . . . Slashing Weapon . | . . . . Piercing Weapon . | . . . . Special Melee Weapon . | . . . . Unidentified Prototypes 1 | . . 1 . Parts Lost 25 | . 1 2 22 Power 2 | . . . 2 Propulsion 4 | . . 1 3 Utility 6 | . . . 6 Weapon 13 | . 1 1 11 Highest Loss Streak 21 | . 1 2 21 To Critical Strikes 1 | . . . 1 Average Backups 12 | 2 7 14 14 Power 1 | . 1 1 1 Propulsion . | . . . . Utility 6 | . 2 8 8 Weapon 3 | . 3 3 3 Tool/Special . | . . . . Unused Backups 12 | . 2 4 6 Power 2 | . 2 . . Propulsion 1 | . . 1 . Utility 7 | . . 1 6 Weapon 2 | . . 2 . Tool/Special . | . . . . Average Slot Usage (%) 87 | . 88 89 82 Engine 12 | . 14 14 8 Treads 17 | . 28 14 17 Wheel 3 | . . 4 1 Device 10 | . . 13 11 Storage 13 | . 17 14 8 Energy Gun 17 | . 27 19 . Energy Cannon 6 | . . 7 12 Ballistic Cannon 1 | . . . 10 Peak Build Rating 24 | 6 8 16 24 Average Rating 11 | 4 6 11 18 On Entrance 7 | . 6 7 16 Avg Prop Armor Cover (%) 13 | . . 13 . Naked Turns . | . . . . Heaviest Build 83 | 14 49 62 83 Greatest Support 60 | 40 40 40 60 Greatest Overweight (x) 20 | . 1 16 20 Average Overweight (x) 1 | . . 2 . Largest Inventory Capacity 20 | 8 20 20 20 Average Capacity 17 | 7 11 20 19 Most Carried 20 | 5 13 20 20 Average Carried 15 | 2 7 17 16 Final Capacity 20 | 8 20 20 20 Final Carried 20 | 2 13 20 3 Class Distribution -------------------- 83% | Mutant 7% | Scavenger-Gunner 4% | Subdweller-Tank Dominant Class ---------------- Mutant | -10/Materials Mutant | -10/Subcaves Scavenger-Gunner | -8/Materials Resources | -11 -10 -10 -8 ----------- Run | Yrd Mat Sub Mat Matter Collected 823 | 204 101 202 316 Remotely . | . . . . Salvage Created 1336 | . 454 138 744 Parts 78 | . 31 10 37 Haulers Intercepted 2 | . 1 . 1 Recyclers Shooed . | . . . . Parts Field Recycled . | . . . . Retrieved Matter . | . . . . Parts Self-Destructed 17 | . . 17 . Prevented . | . . . . Parts Restored . | . . . . Kills | -11 -10 -10 -8 ------- Run | Yrd Mat Sub Mat Combat Hostiles Destroyed 36 | . 12 5 19 Guns 15 | . 11 4 . Cannons 19 | . . . 19 AOE 2 | . 1 1 . Classes Destroyed 8 | . 4 2 2 Hauler 2 | . 1 . 1 Watcher 4 | . 1 . 3 Swarmer 14 | . 6 2 6 Grunt 14 | . 6 . 8 Brawler 1 | . . . 1 Sentry 4 | . . 1 3 Hunter 1 | . . . 1 Subdweller 2 | . . 2 . Best Kill Streak 7 | . 5 2 7 Combat Bots Only 5 | . 5 2 5 Max Kills in Single Turn 3 | . 1 2 3 Gunslinging . | . . . . Exploded 1 | . 1 1 . Melee . | . . . . Uniques/NPCs Destroyed . | . . . . Combat | -11 -10 -10 -8 -------- Run | Yrd Mat Sub Mat Hostile Shots Fired 294 | . 57 14 223 Missed 94 | . 17 5 72 Hits 200 | . 40 9 151 Projectile 200 | . 40 9 151 AOE 2 | . . 2 . Critical Strikes 11 | . . . 11 Actively Blocked 1 | . . . 1 Damage Taken 3258 | . 424 272 2562 Core 716 | . 71 94 551 Absorbed by Shields . | . . . . Redirected to Shielding 56 | . . . 56 Core Remaining (%) 67 | 100 . 34 . Volleys Fired 111 | . 38 19 54 Largest 3 | . 2 2 3 Hottest 240 | . 80 105 240 Shots Fired 241 | . 70 39 132 Gun 94 | . 70 18 6 Cannon 128 | . . 5 123 Launcher 3 | . . . 3 Special 16 | . . 16 . Kinetic 53 | . . . 53 Thermal 103 | . . 27 76 Explosive 3 | . . . 3 Electromagnetic 82 | . 70 12 . Robot Hit Streak 13 | . 7 12 13 Robot Miss Streak 3 | . 3 1 3 Penetration Max . | . . . . Secondary Targets 1 | . 1 . . Max Gunslinging Chain 1 | . 1 . . Shots Hit Robots 129 | . 39 16 74 Core Hits 64 | . 18 7 39 Critical Kills . | . . . . Critical Parts Destroyed . | . . . . Critical Strikes 1 | . 1 . . Corrupt 1 | . 1 . . Melee Attacks . | . . . . Impact . | . . . . Slashing . | . . . . Piercing . | . . . . Sneak Attacks . | . . . . Combat Hostiles . | . . . . Follow-up Attacks . | . . . . Damage Inflicted 2822 | . 623 310 1889 Guns 752 | . 516 188 48 Cannons 1681 | . . 29 1652 Explosions 369 | . 107 73 189 Melee . | . . . . Ramming 20 | . . 20 . Kinetic 512 | . . . 512 Thermal 1475 | . 107 180 1188 Explosive 189 | . . . 189 Electromagnetic 626 | . 516 110 . Impact . | . . . . Slashing . | . . . . Piercing . | . . . . Highest Corruption 2 | . . 2 . Average Corruption 2 | . . 2 . Corruption Purged . | . . . . Corruption Blocked . | . . . . Effects 17 | . . 17 . Message Errors 5 | . . 5 . Matter Fused 4 | . . 4 . Heat Flow Errors 2 | . . 2 . Energy Discharges 2 | . . 2 . Data Loss (minor) 1 | . . 1 . Data Loss (major) 2 | . . 2 . Misfires 1 | . . 1 . Overload Shots . | . . . . Overflow Damage 9 | . . 1 8 Projectiles 8 | . . . 8 Explosions 1 | . . 1 . Melee . | . . . . Knockbacks 4 | . . . 4 Impact . | . . . . Kinetic 4 | . . . 4 Secondary . | . . . . Self-Inflicted Damage 78 | . 58 20 . Shots 2 | . 2 . . Rammed . | . . . . Targets Rammed . | . . . . Kicked . | . . . . Crushed . | . . . . Highest Temperature 489 | . 192 213 489 Average Temperature 108 | . 43 88 143 Received Heat Transfer 1113 | . 87 36 990 Effects 10 | . . . 10 Shutdowns 4 | . . . 4 Interference 1 | . . . 1 Matter Decay 1 | . . . 1 Damage (major) 4 | . . . 4 Siege Activations . | . . . . Martial Activations . | . . . . Shielding Activations . | . . . . Robots Disrupted . | . . . . Combat Hostiles . | . . . . Robots Corrupted . | . . . . Combat Hostiles . | . . . . Parts Fried 2 | . 2 . . Impact Corruptions . | . . . . Robots Melted . | . . . . Combat Hostiles . | . . . . Parts Melted 5 | . . . 5 Heat Transferred 2589 | . 150 322 2117 Parts Sabotaged . | . . . . Parts Stolen . | . . . . Parts Stripped . | . . . . Power Chain Reactions 3 | . 2 1 . Alert | -11 -10 -10 -8 ------- Run | Yrd Mat Sub Mat Maximum Alert Level . | . . . . Low Security (%) 100 | 100 100 . 100 Level 1 . | . . . . Level 2 . | . . . . Level 3 . | . . . . Level 4 . | . . . . Level 5 . | . . . . High Security . | . . . . Max Security . | . . . . Peak Influence 143 | . 130 . 143 Initial . | . . . . Average 52 | . 56 . 51 Influence Increases 1076 | . 362 146 568 Destroy 0b10 Robot/C 760 | . 240 120 400 Destroy 0b10 Robot/NC 30 | . 10 . 20 Destroy Leader 152 | . 54 . 98 Allied During Kill 13 | . . 11 2 Successful Hack 7 | . 7 . . Disable Machine 15 | . . . 15 Destroy Structure 39 | . 6 . 33 Lose Combat Pursuer 60 | . 45 15 . Influence Decreases 1076 | . 362 146 568 Time Decay 803 | . 352 109 342 Lost Part 215 | . 10 . 205 Lost Ally 58 | . . 37 21 Squads Dispatched 4 | . 2 . 2 Investigation 3 | . 2 . 1 Extermination . | . . . . Reinforcement 1 | . . . 1 Assault . | . . . . Garrison . | . . . . Intercept . | . . . . Searches Triggered . | . . . . Construction Impeded . | . . . . Haulers Reinforced . | . . . . Active Scanning Responses . | . . . . Cargo Convoy Interrupts . | . . . . Stealth | -11 -10 -10 -8 --------- Run | Yrd Mat Sub Mat Distress Signals 4 | . 3 . 1 Communications Jammed . | . . . . Distress Signals . | . . . . Times Spotted 62 | . 21 11 30 Peak Tracking Total 6 | . 5 2 6 Tactical Retreats 4 | . 3 1 . Traps | -11 -10 -10 -8 ------- Run | Yrd Mat Sub Mat Traps Triggered 1 | . . . 1 Indirectly . | . . . . Trap Hack Attempts . | . . . . Triggered . | . . . . Disarmed . | . . . . Reprogrammed . | . . . . Reused . | . . . . Traps Extracted . | . . . . Installed . | . . . . Triggered . | . . . . Machines | -11 -10 -10 -8 ---------- Run | Yrd Mat Sub Mat Machines Disabled 3 | . . 2 1 Max in Single Turn 1 | . . . 1 Machines Repaired . | . . . . Machines Dismantled . | . . . . Machines Sabotaged . | . . . . Overloaded Fab Kills . | . . . . Hacking | -11 -10 -10 -8 --------- Run | Yrd Mat Sub Mat Machines Accessed 5 | . 4 . 1 Terminals 3 | . 3 . . Fabricators . | . . . . Repair Stations . | . . . . Recycling Units 1 | . 1 . . Scanalyzers 1 | . . . 1 Garrison Access . | . . . . Total Hacks 14 | . 13 . 1 Successful 7 | . 7 . . Failed 7 | . 6 . 1 Catastrophic 1 | . 1 . . Database Lockouts . | . . . . Manual . | . . . . Terminals 9 | . 9 . . Fabricators . | . . . . Repair Stations . | . . . . Recycling Units 4 | . 4 . . Scanalyzers 1 | . . . 1 Garrison Access . | . . . . Terminal Hacks 6 | . 6 . . Record 4 | . 4 . . Alert Level 1 | . 1 . . Hauler Manifests 1 | . 1 . . Fabricator Hacks . | . . . . Repair Station Hacks . | . . . . Recycling Unit Hacks 1 | . 1 . . Retrieve Matter 1 | . 1 . . Scanalyzer . | . . . . Garrison Access Hacks . | . . . . Unauthorized Hacks . | . . . . Terminals . | . . . . Fabricators . | . . . . Repair Stations . | . . . . Recycling Units . | . . . . Scanalyzers . | . . . . Garrison Access . | . . . . Data Cores Recovered . | . . . . Used . | . . . . Hacking Detections 5 | . 4 . 1 Full Trace Events 1 | . 1 . . Feedback Events . | . . . . Feedback Blocked . | . . . . Robot Schematics Acquired . | . . . . Robots Built . | . . . . Authchips . | . . . . Time . | . . . . Total Robot Build Rating . | . . . . Part Schematics Acquired . | . . . . Parts Built . | . . . . Authchips . | . . . . Time . | . . . . Total Part Build Rating . | . . . . Part Studies Acquired . | . . . . Parts Repaired . | . . . . Time . | . . . . Parts Recycled . | . . . . Recycled Matter . | . . . . Retrieved Matter . | . . . . Retrieved Components . | . . . . Parts Scanalyzed . | . . . . Part Schematics Acquired . | . . . . Parts Damaged . | . . . . Bothacking | -11 -10 -10 -8 ------------ Run | Yrd Mat Sub Mat Used RIF Installer . | . . . . Robots Hacked . | . . . . Non-combat . | . . . . Combat . | . . . . Robot Hacks Applied . | . . . . Relay Couplers Released . | . . . . Fabnet Peak Effective % . | . . . . Robots Rewired . | . . . . Allies Hacked . | . . . . Hacks Repelled . | . . . . Allies | -11 -10 -10 -8 -------- Run | Yrd Mat Sub Mat Total Allies 7 | . . 7 . Largest Group 4 | . . 4 2 Highest-Rated Group 76 | . . 76 38 Highest-Rated Ally 19 | . . 19 19 Total Orders . | . . . . Ally Attacks 46 | . . 34 12 Total Damage 706 | . . 543 163 Kills 7 | . . 6 1 Allies Corrupted . | . . . . Allies Melted . | . . . . Intel | -11 -10 -10 -8 ------- Run | Yrd Mat Sub Mat Active Infowar (turns) 16 | . 1 . 15 Optics 15 | . . . 15 ECM 1 | . 1 . . Robot Analysis Total . | . . . . Derelict Logs Recovered . | . . . . Drone Launches . | . . . . Drone Recoveries . | . . . . Exploration | -11 -10 -10 -8 ------------- Run | Yrd Mat Sub Mat Turns Passed 4504 | 63 906 2688 847 Spaces Moved 1693 | 41 427 914 311 Core 65 | 14 . 33 18 Treads 1305 | 27 427 603 248 Legs . | . . . . Wheels 323 | . . 278 45 Hover . | . . . . Flight . | . . . . Fastest Speed 50 | 50 160 120 50 Average Speed 233 | 122 179 279 191 Slowest Speed 1050 | 160 240 850 1050 Overloaded Moves . | . . . . Propulsion Burnouts . | . . . . Robots Hopped . | . . . . Potential Cave-ins . | . . . . Cave-ins Triggered . | . . . . Exploration Rate (%) 42 | 3 59 72 36 Regions Visited 3 Branch Regions 1 Pre-discovered Areas . | . . . . Known Exits Taken . | . . . . Unknown Exits Taken 3 | 1 1 1 . Scrap Searched 10 | . . 10 . Spaces Dug . | . . . . Terrain Destroyed 39 | . 5 2 32 Melee . | . . . . Projectile 12 | . . . 12 AOE 27 | . 5 2 20 Terrain Rammed 5 | . . 5 . Walls Destroyed . | . . . . Machines Disabled . | . . . . Actions | -11 -10 -10 -8 --------- Run | Yrd Mat Sub Mat Total 2007 | 52 501 993 461 Wait 47 | . 7 3 37 Move 1690 | 40 426 913 311 Hop . | . . . . Pick Up 61 | 5 18 22 16 Fast Attach 7 | 3 . . 4 Attach 30 | 3 2 8 17 Detach 2 | . . 1 1 Swap 19 | 1 3 9 6 Drop 34 | . 7 13 14 Fire 111 | . 38 19 54 Melee . | . . . . Ram 5 | . . 5 . Kick . | . . . . Crush . | . . . . Escape Stasis . | . . . . Rewire . | . . . . Trap . | . . . . Miscellaneous 1 | . . . 1 Route ------- -11/Scrapyard -10/Materials (discovered 2 exits: [*Mat] / [*Sub]) -10/Subcaves (discovered 2 exits: *Mat / [*Rec]) -8/Materials (discovered 1 exit: [*Fac]) History --------- Turn | Location | Event 8 | -11/Scrapyard | Discovered new exit (range 15) 64 | -11/Scrapyard | Entered Materials 312 | -10/Materials | Build established: Mutant 628 | -10/Materials | Discovered new exit (range 11) 949 | -10/Materials | Discovered new exit (range 8) 970 | -10/Materials | Entered Subcaves 1008 | -10/Subcaves | A swath of the cavern ceiling suddenly collapsed 1276 | -10/Subcaves | Core integrity fell below 50% 1498 | -10/Subcaves | Visited triangular shrine 1507 | -10/Subcaves | Found Prototype Device 1509 | -10/Subcaves | Identified V3-11A's Pendant 1514 | -10/Subcaves | Befriended Subdweller 1994 | -10/Subcaves | Befriended Subdweller 1994 | -10/Subcaves | Befriended Subdweller 2166 | -10/Subcaves | A swath of the cavern ceiling suddenly collapsed 2281 | -10/Subcaves | Shifting Twisted Machinery released Sub. Power Source 2289 | -10/Subcaves | Befriended Subdweller 2294 | -10/Subcaves | Befriended Subdweller 2771 | -10/Subcaves | Shifting Twisted Machinery released Sub. Beam Cannon 2790 | -10/Subcaves | Shifting Twisted Machinery released Sub. Beam Cannon 2908 | -10/Subcaves | Discovered new exit (range 13) 3005 | -10/Subcaves | Disturbed a concealed Subdweller 3009 | -10/Subcaves | Befriended Subdweller 3489 | -10/Subcaves | Discovered new exit (range 12) 3505 | -10/Subcaves | Shifting Twisted Machinery released Sub. Laser 3506 | -10/Subcaves | Shifting Twisted Machinery released Sub. Machine Gun 3565 | -10/Subcaves | Disturbed a concealed Subdweller 3569 | -10/Subcaves | Befriended Subdweller 3658 | -10/Subcaves | Entered Materials 3658 | -8/Materials | Accompanied by 2 allies 3658 | -8/Materials | Evolved 4 slots: Propulsion x1, Utility x2, Weapon x1 3886 | -8/Materials | Discovered new exit (range 7) 4339 | -8/Materials | Build established: Scavenger-Gunner 4470 | -8/Materials | Core integrity fell below 50% 4496 | -8/Materials | Core integrity fell below 20% 4505 | -8/Materials | Destroyed by G-47 Trooper with Particle Gun Last Messages --------------- Acquired 32 matter. Acquired Battle Cannon. U-05 Engineer builds a Wall. K-01 Serf collects debris. Battle Cannon destroyed. Lgt. Nuclear Core destroyed. Acquired 41 matter. Acquired Particle Gun. U-05 Engineer builds a Wall. Acquired Particle Gun. Imp. Targeting Computer destroyed. Core Shielding destroyed. [Achievement: Spot Them First] H-61 Shepherd destroyed. K-01 Serf collects debris. Particle Gun destroyed. K-01 Serf collects debris. K-01 Serf destroyed. Critical hit (Burn: +37). Particle Gun destroyed. Map ----- +----------------------------------------------------+ | ?????????????????????????????????????????????????? | | ?????????????????????????????????????????????????? | | ?????????????????????????????????????????????????? | | ?????????????????????????????????????????????????? | | ?????????????????????????????????????????????????? | | ?????????????????????????????????????????????????? | | ?????????????????????????????????????????????????? | | ?????????????????????????????????????????????????? | | ?????????????????????????????????????????????????? | | ?????????????????????????????????????????????????? | | ?????????????????????????????????????????????????? | | ?????????????????????????????????????????????????? | | ?????????????????????????????????????????????????? | | ?????????????????????????????????????????????????? | | ?????????????????????????????????????????????????? | | ?????????????????????????????????????????????????? | | ?????????????????????????????????????????????????? | | ??????????????????????????????? ?????????????????? | | ?????????????????????????????? #????????????????? | | ?????????????????????????????? #????????????????? | | ?????????????????????????????? #????????????????? | | ?????????????????????????????# ###??????????????? | | ????????????????######??###?# #??????????????? | | ????????????????# #?? #? #??????????????? | | ????????????????# ####%## # # ???????????????? | | ????????????????# ##"#@####% ]########????????? | | ????????????????# ##[=%[ =#=* [ ?????????? | | ????????????????# ##%%%%= #%[== ??????????? | | ????????????????# ##!![g!*#[=T """???????????? | | ????????????????# ##!]%=!=#% """???????????? | | ????????????????# ##!%%g!*# """ #????????? | | ??????????####### ##!=g%= # #????????? | | ??????????# ###+######+### #????????? | | ??????????# *!! ??????? | | ??????????#= %! ! ???????? | | ??????????# ???????? | | ??????????# ############ # # #######????????? | | ?########### ###########??## ?????????????? | | ?# ! # # #???? """ ???????????? | | ?# ! # # !!! #?????""" #??????????? | | ?# """ "" + + !! #??????"" * #??????????? | | ?# """ """ # # ! #?????? ????#??????????? | | ?# """ S" # # #???????????????????????? | | ?# """ # # #???????????????????????? | | ?# """ # # #???????????????????????? | | ?# # # ##??????????????????????? | | ?########### #########+###?????????????????????? | | ???????????# ####### #?????????????????????? | | ?????????? #?????????????????????? | | ?????????? & #?????????????????????? | +----------------------------------------------------+ Best States ------------- Heat Dissipation 45 Energy Generation 15 Energy Capacity 250 Matter Stores 300 Matter Capacity 300 Sight Range 21 Terrain Scan Density 10 Armor Coverage 800 Core Shielding 20 Evasion (%) 50 Targeting Accuracy 6 Recoil Reduction 3 Item Schematics ----------------- None Robot Schematics ------------------ None Fabricated ------------ Nothing Repaired ---------- Nothing Studied --------- None Alien Tech Used ----------------- None Achievements -------------- SUBSUB Shopping List Spot Them First Survival Of The Most Covered That Tickles Challenges ------------ None Game ------ Seed AblativeNodePrototype Manual? 0 Play Time 00:31:33 Cumulative 5.9 hours Start 2025.11.11 @ 15:37:52 End 2025.11.11 @ 16:08:22 Sessions 1 Manual Loads 0 Difficulty Rogue Special Mode None Game No. 14 Rogue 14 Adventurer 0 Explorer 0 Win Type - Total 0 Types 0/0/0/0/0/0/0/0/0/0 Lore% 8 Gallery% 8 Achievement% 8 Wizard Run 0 Options --------- Layout 1 ASCII 0 Keyboard 0 Movement Mouse Keybinds 0 Fullscreen 1 Font 32/SmallcapsGlow Map View 50x35 Zoom Use 0% Tactical HUD 0 Map Filters NONE Filters NONE Steam 1 RUN: 7ee1b16d-92f6-435c-89c8-e2dde3d2e673